bitfinex-derivatives/quotes_BTCF0:USTF0_20250106
["timestamp","ask_amount","ask_price","bid_price","bid_amount"]
[1736205854111,0.45001083,102120.0,102110.0,0.64382104]
[1736205854414,0.51039349,102120.0,102110.0,0.64382104]
[1736205854612,0.33431876,102120.0,102110.0,0.28302104]
[1736205856114,0.30339695,102120.0,102110.0,0.28302104]
[1736205857316,0.36377961,102120.0,102110.0,0.28302104]
[1736205857616,0.18770488,102120.0,102110.0,0.28302104]
[1736205858413,0.12732222,102120.0,102110.0,0.28302104]
[1736205858716,0.18770488,102120.0,102110.0,0.28302104]
[1736205859016,0.33449098,102120.0,102110.0,0.28302104]
[1736205862115,0.33449098,102120.0,102110.0,0.23407704]
[1736205862305,0.93174837,102120.0,102110.0,0.23407704]
[1736205863112,0.81098305,102120.0,102110.0,0.23407704]
[1736205863621,0.87136571,102120.0,102110.0,0.23407704]
[1736205864013,0.54850488,102120.0,102110.0,0.1757906]
[1736205864519,0.48812222,102120.0,102110.0,0.1757906]
[1736205864719,0.54850488,102120.0,102110.0,0.1757906]
[1736205865323,0.60888754,102120.0,102110.0,0.1757906]
[1736205866724,0.78495516,102120.0,102110.0,0.1757906]
[1736205868222,0.66418984,102120.0,102110.0,0.1757906]
[1736205868422,0.78495516,102120.0,102110.0,0.1757906]
[1736205868614,0.7245725,102120.0,102110.0,0.1757906]
[1736205871419,0.78495516,102120.0,102110.0,0.1757906]
[1736205872123,0.66418984,102120.0,102110.0,0.1757906]
[1736205872315,0.7245725,102120.0,102110.0,0.1757906]
[1736205880132,0.66418984,102120.0,102110.0,0.1757906]
[1736205880325,0.7245725,102120.0,102110.0,0.1757906]
[1736205885236,0.66418984,102120.0,102110.0,0.1757906]
[1736205885434,0.7245725,102120.0,102110.0,0.1757906]
[1736205885934,0.3637725,102120.0,102110.0,0.1757906]
[1736205886133,0.7245725,102120.0,102110.0,0.1757906]
[1736205891331,0.7245725,102120.0,102110.0,0.40986764]
[1736205896546,0.78495516,102120.0,102110.0,0.40986764]
[1736205896841,0.7245725,102120.0,102110.0,0.40986764]
[1736205897244,0.78495516,102120.0,102110.0,0.40986764]
[1736205898845,0.60888754,102120.0,102100.0,0.40986764]
[1736205899047,0.50082666,102110.0,102100.0,0.40986764]
[1736205900248,0.67797554,102110.0,102100.0,0.40986764]
[1736205901450,0.67797554,102110.0,102100.0,0.41086764]
[1736205901655,0.7383582,102110.0,102100.0,0.22424664]
[1736205902144,0.7383582,102110.0,102100.0,0.22324664]
[1736205902344,0.7383582,102110.0,102100.0,0.22424664]
[1736205903353,0.56220932,102110.0,102100.0,0.001]
[1736205904856,0.76762984,102110.0,102100.0,0.001]
[1736205907354,0.94344984,102110.0,102100.0,0.001]
[1736205910159,0.82268452,102110.0,102100.0,0.001]
[1736205910552,0.88306718,102110.0,102100.0,0.001]
[1736205911450,0.64826015,102110.0,102100.0,0.001]
[1736205914156,0.19637749,102110.0,102100.0,0.28612226]
[1736205915550,0.13780207,102110.0,102100.0,0.28612226]
[1736205916160,0.13780207,102110.0,102100.0,0.64692226]
[1736205921055,0.049944,102110.0,102100.0,0.47113166]
[1736205921662,0.049944,102110.0,102100.0,0.11033166]
[1736205924963,0.049944,102110.0,102100.0,0.47113166]
[1736205925164,0.049944,102110.0,102100.0,0.11033166]
[1736205925364,0.049944,102110.0,102100.0,0.47113166]
[1736205926962,0.049944,102110.0,102100.0,0.11033166]
[1736205927266,0.049944,102110.0,102100.0,0.47113166]
[1736205928673,0.13777281,102110.0,102100.0,0.47113166]
[1736205933968,0.16847281,102110.0,102100.0,0.47113166]
[1736205934364,0.16847281,102110.0,102100.0,0.53151432]
[1736205936069,0.080644,102110.0,102100.0,0.70689453]
[1736205936273,0.080644,102110.0,102100.0,0.64651187]
[1736205937277,0.080644,102110.0,102100.0,0.47113166]
[1736205938472,0.16847281,102110.0,102100.0,1.02022813]
[1736205942980,0.2855779,102110.0,102100.0,1.02022813]
[1736205944176,0.2855779,102110.0,102100.0,1.37098822]
[1736205944371,0.19774909,102110.0,102100.0,1.37098822]
[1736205946074,0.19774909,102110.0,102100.0,1.07868814]
[1736205948983,0.19774909,102110.0,102100.0,0.71788814]
[1736205949284,0.19774909,102110.0,102100.0,1.37177982]
[1736205950285,0.19774909,102110.0,102100.0,1.01097982]
[1736205952081,0.34413045,102110.0,102100.0,1.02101973]
[1736205952478,0.34413045,102110.0,102100.0,0.66021973]
[1736205952684,0.34413045,102110.0,102100.0,1.02101973]
[1736205953185,0.34413045,102110.0,102100.0,0.66021973]
[1736205954981,0.34413045,102110.0,102100.0,1.01097982]
[1736205956488,0.34413045,102110.0,102100.0,1.37177982]
[1736205958090,0.34413045,102110.0,102100.0,1.67880174]
[1736205961589,0.19774909,102110.0,102100.0,1.38571006]
[1736205962794,0.19774909,102110.0,102100.0,1.07868814]
[1736205963197,0.19774909,102110.0,102100.0,1.01830548]
[1736205965096,0.19774909,102110.0,102100.0,1.07868814]
[1736205968200,0.19774909,102110.0,102100.0,1.01830548]
[1736205968499,0.19774909,102110.0,102100.0,1.07868814]
[1736205970094,0.19774909,102110.0,102100.0,1.0245628]
[1736205970301,0.61893175,102110.0,102100.0,0.96418014]
[1736205971296,0.61893175,102110.0,102100.0,0.91523114]
[1736205971907,0.50182666,102110.0,102100.0,0.65843475]
[1736205972203,0.82386565,102110.0,102100.0,0.52850244]
[1736205973802,0.67748429,102110.0,102100.0,0.17672569]
[1736205976407,0.82412157,102110.0,102100.0,0.001]
[1736205977806,0.64846394,102110.0,102100.0,0.17672569]
[1736205979901,0.65802003,102110.0,102100.0,0.17672569]
[1736205995211,0.59763737,102110.0,102100.0,0.17672569]
[1736205995413,0.65802003,102110.0,102100.0,0.17672569]
[1736205996525,0.65802003,102110.0,102100.0,0.41117122]
[1736205997727,0.83367766,102110.0,102100.0,0.17672569]
[1736205999121,0.83367766,102110.0,102100.0,0.41117122]
[1736206000225,0.68704038,102110.0,102100.0,0.41117122]
[1736206004028,0.74742304,102110.0,102100.0,0.41117122]
[1736206005833,0.57176541,102110.0,102100.0,0.001]
[1736206006018,0.048949,102100.0,102090.0,0.17572569]
[1736206006214,0.59391432,102100.0,102090.0,0.17572569]
[1736206006927,0.77004498,102100.0,102090.0,0.17572569]
[1736206007323,0.77004498,102100.0,102090.0,0.17872569]
[1736206007718,0.77004498,102100.0,102090.0,0.18172569]
[1736206008024,0.77004498,102100.0,102090.0,0.006]
[1736206010530,0.61976275,102100.0,102090.0,0.18172569]
[1736206010733,0.74052807,102100.0,102090.0,0.18172569]
[1736206010927,0.80091073,102100.0,102090.0,0.17572569]
[1736206011127,0.80091073,102100.0,102080.0,0.23444553]
[1736206011128,0.83842807,102100.0,102080.0,0.23444553]
[1736206011333,0.50043666,102090.0,102080.0,0.23444553]
[1736206012232,0.50043666,102090.0,102080.0,0.24144553]
[1736206012433,0.76430527,102090.0,102080.0,0.007]
[1736206013156,0.76430527,102090.0,102080.0,0.011]
[1736206013858,0.61869152,102090.0,102080.0,0.006]
[1736206014058,0.61869152,102090.0,102080.0,0.01]
[1736206017256,0.62868533,102090.0,102080.0,0.01]
[1736206018456,0.71657829,102090.0,102080.0,0.01]
[1736206024853,0.77696095,102090.0,102080.0,0.01]
[1736206025062,0.62868533,102090.0,102080.0,0.01]
[1736206025252,0.68906799,102090.0,102080.0,0.01]
[1736206025562,0.62868533,102090.0,102080.0,0.01]
[1736206026253,0.68906799,102090.0,102080.0,0.01]
[1736206027862,0.16720886,102090.0,102080.0,0.17972432]
[1736206028166,0.16720886,102090.0,102080.0,0.60412432]
[1736206028358,0.16720886,102090.0,102080.0,0.57674166]
[1736206028558,0.22759152,102090.0,102080.0,0.516359]
[1736206028757,0.16720886,102090.0,102080.0,0.57674166]
[1736206029165,0.049954,102090.0,102080.0,1.49324357]
[1736206031566,0.13787912,102090.0,102080.0,1.14248348]
[1736206031970,0.13787912,102090.0,102080.0,1.10948348]
[1736206032360,0.19826178,102090.0,102080.0,1.10948348]
[1736206032563,0.19826178,102090.0,102080.0,1.04910082]
[1736206033468,0.19826178,102090.0,102080.0,1.10948348]
[1736206034060,0.19826178,102090.0,102080.0,1.46024357]
[1736206034862,0.19826178,102090.0,102080.0,1.47023184]
[1736206035060,0.19826178,102090.0,102080.0,1.11947175]
[1736206036159,0.13787912,102090.0,102080.0,1.11947175]
[1736206036859,0.19826178,102090.0,102080.0,1.11947175]
[1736206038160,0.13787912,102090.0,102080.0,1.11947175]
[1736206043575,0.19826178,102090.0,102080.0,1.01013009]
[1736206044175,0.13787912,102090.0,102080.0,1.07051275]
[1736206044475,0.19826178,102090.0,102080.0,1.07051275]
[1736206046276,0.19826178,102090.0,102080.0,1.01013009]
[1736206046571,0.31551664,102090.0,102080.0,1.01013009]
[1736206047275,0.31551664,102090.0,102080.0,0.97853009]
[1736206048575,0.67631664,102090.0,102080.0,0.58573009]
[1736206049470,0.67631664,102090.0,102080.0,0.54739531]
[1736206049668,0.31551664,102090.0,102080.0,0.60777797]
[1736206049871,0.25513398,102090.0,102080.0,1.01753697]
[1736206050267,0.25513398,102090.0,102080.0,1.04823697]
[1736206050979,0.13787912,102090.0,102080.0,0.81388684]
[1736206052077,0.25513398,102090.0,102080.0,1.08770264]
[1736206052478,0.25513398,102090.0,102080.0,1.03874364]
[1736206058588,0.16720886,102090.0,102080.0,1.03874364]
[1736206059487,0.16720886,102090.0,102080.0,1.08770264]
[1736206060189,0.16720886,102090.0,102080.0,1.03874364]
[1736206060873,0.16720886,102090.0,102080.0,1.00804364]
[1736206064392,0.16720886,102090.0,102080.0,1.35880373]
[1736206066580,0.16720886,102090.0,102080.0,0.99800373]
[1736206067586,0.31382261,102090.0,102080.0,0.64724364]
[1736206069581,0.31382261,102090.0,102080.0,0.58686098]
[1736206070190,0.31382261,102090.0,102080.0,0.69620264]
[1736206071392,0.31382261,102090.0,102080.0,1.04696273]
[1736206073693,0.16720886,102090.0,102080.0,0.69620264]
[1736206075591,0.58839152,102090.0,102080.0,0.57687271]
[1736206075791,0.64877418,102090.0,102080.0,0.57687271]
[1736206075990,0.58839152,102090.0,102080.0,0.57687271]
[1736206078102,0.64726732,102090.0,102080.0,0.24455316]
[1736206078597,0.64726732,102090.0,102080.0,0.30493582]
[1736206079903,0.61787941,102090.0,102080.0,0.30493582]
[1736206080406,0.61787941,102090.0,102080.0,0.24455316]
[1736206082098,0.61787941,102090.0,102080.0,0.30493582]
[1736206082799,0.37445496,102090.0,102080.0,0.30493582]
[1736206083007,0.3140723,102090.0,102080.0,0.41427748]
[1736206083392,0.3140723,102090.0,102080.0,0.35389482]
[1736206084305,0.25535369,102090.0,102080.0,0.92162586]
[1736206084709,0.25535369,102090.0,102080.0,1.28242586]
[1736206085207,0.25535369,102090.0,102080.0,0.92162586]
[1736206085408,0.25535369,102090.0,102080.0,0.6870727]
[1736206088695,0.25535369,102090.0,102080.0,0.57773104]
[1736206088899,0.67653635,102090.0,102080.0,0.57773104]
[1736206089509,0.61787941,102090.0,102080.0,0.24428686]
[1736206095928,0.55749675,102090.0,102080.0,0.30466952]
[1736206096123,0.55749675,102090.0,102080.0,0.35362852]
[1736206096323,0.61787941,102090.0,102080.0,0.35362852]
[1736206096925,0.55749675,102090.0,102080.0,0.35362852]
[1736206097125,0.73526541,102090.0,102080.0,0.35362852]
[1736206097629,0.73526541,102090.0,102080.0,0.29324586]
[1736206100226,0.73526541,102090.0,102080.0,0.86168688]
[1736206109533,0.67488275,102090.0,102080.0,0.86168688]
[1736206109740,0.73526541,102090.0,102080.0,0.86168688]
[1736206115126,0.61787941,102090.0,102080.0,0.86168688]
[1736206117235,0.55749675,102090.0,102080.0,0.86168688]
[1736206117936,0.55749675,102090.0,102080.0,0.62740002]
[1736206122638,0.19669675,102090.0,102080.0,0.62740002]
[1736206123236,0.19669675,102090.0,102080.0,1.04858268]
[1736206124130,0.19669675,102090.0,102080.0,0.75552577]
[1736206124530,0.16743478,102090.0,102080.0,1.10628586]
[1736206125723,0.16743478,102090.0,102080.0,1.16666852]
[1736206125923,0.25553323,102090.0,102080.0,1.23056852]
[1736206126933,0.25553323,102090.0,102080.0,1.55703039]
[1736206131842,0.25553323,102090.0,102080.0,1.52342712]
[1736206135939,0.13805245,102090.0,102080.0,1.52342712]
[1736206137737,0.13805245,102090.0,102080.0,1.43154446]
[1736206137939,0.13805245,102090.0,102080.0,1.39914446]
[1736206138245,0.17135245,102090.0,102080.0,1.39914446]
[1736206138445,0.28883323,102090.0,102080.0,1.39914446]
[1736206141144,0.28883323,102090.0,102080.0,1.04838437]
[1736206141544,0.28883323,102090.0,102080.0,1.10876703]
[1736206143153,0.25553323,102090.0,102080.0,1.10876703]
[1736206143958,0.13805245,102090.0,102080.0,1.49300948]
[1736206144752,0.13805245,102090.0,102080.0,1.52460948]
[1736206146753,0.13805245,102090.0,102080.0,1.19826852]
[1736206147954,0.13805245,102090.0,102080.0,1.26086852]
[1736206149647,0.13805245,102090.0,102080.0,1.58659822]
[1736206150049,0.13805245,102090.0,102080.0,1.22579822]
[1736206150250,0.08909845,102090.0,102080.0,1.58659822]
[1736206150553,0.22762978,102100.0,102080.0,1.68451422]
[1736206150554,0.19652978,102100.0,102080.0,1.68451422]
[1736206150757,0.34327253,102100.0,102090.0,0.47013666]
[1736206152158,0.079049,102100.0,102090.0,1.42501056]
[1736206152759,0.079049,102100.0,102090.0,1.42701056]
[1736206154957,0.079049,102100.0,102090.0,1.06621056]
[1736206155155,0.079049,102100.0,102090.0,1.42701056]
[1736206159761,0.0301,102100.0,102090.0,1.42701056]
[1736206159956,0.0301,102100.0,102090.0,1.48739322]
[1736206160359,0.0301,102100.0,102090.0,1.49740951]
[1736206161662,0.22992778,102110.0,102100.0,0.048949]
[1736206161863,0.22992778,102110.0,102100.0,0.53051432]
[1736206163174,0.112447,102110.0,102100.0,1.09828623]
[1736206163859,0.113447,102110.0,102100.0,1.09828623]
[1736206166661,0.049947,102110.0,102100.0,1.09828623]
[1736206170072,0.11032966,102110.0,102100.0,0.61672091]
[1736206170371,0.049947,102110.0,102100.0,0.67710357]
[1736206171568,0.16742778,102110.0,102100.0,0.34325922]
[1736206174775,0.16742778,102110.0,102100.0,0.40171946]
[1736206177081,0.16742778,102110.0,102100.0,0.6781771]
[1736206177576,0.16742778,102110.0,102100.0,1.0389771]
[1736206180973,0.16742778,102110.0,102100.0,1.38973719]
[1736206181383,0.16742778,102110.0,102100.0,1.45011985]
[1736206184868,0.16742778,102110.0,102100.0,1.38973719]
[1736206188082,0.22781044,102110.0,102100.0,1.32935453]
[1736206189083,0.22781044,102110.0,102100.0,1.38973719]
[1736206191280,0.22781044,102110.0,102100.0,0.96855453]
[1736206191882,0.22781044,102110.0,102100.0,0.61779444]
[1736206193406,0.22781044,102110.0,102100.0,0.6781771]
[1736206193702,0.37455319,102110.0,102100.0,0.6781771]
[1736206196906,0.31417053,102110.0,102100.0,0.61779444]
[1736206197099,0.37455319,102110.0,102100.0,0.6781771]
[1736206197294,0.37455319,102110.0,102100.0,0.61779444]
[1736206197599,0.37455319,102110.0,102100.0,0.6781771]
[1736206199203,0.31417053,102110.0,102100.0,0.6781771]
[1736206199403,0.22781044,102110.0,102100.0,0.6781771]
[1736206199602,0.16742778,102110.0,102100.0,0.6781771]
[1736206200205,0.22781044,102110.0,102100.0,0.6781771]
[1736206200503,0.22781044,102110.0,102100.0,0.61779444]
[1736206200700,0.37455319,102110.0,102100.0,1.02893719]
[1736206201608,0.31417053,102110.0,102100.0,1.02893719]
[1736206203207,0.31417053,102110.0,102100.0,1.45011985]
[1736206203407,0.31417053,102110.0,102100.0,1.54391985]
[1736206204909,0.16742778,102110.0,102100.0,1.58040194]
[1736206208318,0.049947,102110.0,102100.0,1.58040194]
[1736206210117,0.001,102110.0,102100.0,1.6407846]
[1736206210319,0.31316353,102120.0,102110.0,0.048944]
[1736206210512,0.31316353,102120.0,102110.0,0.47012666]
[1736206211521,0.04994,102120.0,102110.0,0.47012666]
[1736206211713,0.05494,102120.0,102110.0,0.47012666]
[1736206213321,0.05494,102120.0,102110.0,1.42638101]
[1736206214612,0.05494,102120.0,102110.0,1.09751112]
[1736206215616,0.08614,102120.0,102110.0,1.09751112]
[1736206216531,0.08614,102120.0,102110.0,1.10718325]
[1736206217522,0.08614,102120.0,102110.0,1.04853215]
[1736206220127,0.08614,102120.0,102110.0,1.28234821]
[1736206220626,0.05494,102120.0,102110.0,1.28234821]
[1736206220825,0.05494,102120.0,102110.0,0.47979879]
[1736206221617,0.06489212,102120.0,102110.0,0.47979879]
[1736206222815,0.05494,102120.0,102110.0,0.47979879]
[1736206223928,0.006,102120.0,102110.0,0.54018145]
[1736206224431,0.006,102120.0,102110.0,1.45565526]
[1736206225620,0.006,102120.0,102110.0,1.16345519]
[1736206226027,0.006,102120.0,102110.0,1.48842408]
[1736206226326,0.78592421,102140.0,102110.0,1.48842408]
[1736206226536,0.73699121,102140.0,102130.0,0.10931766]
[1736206227335,0.59051276,102140.0,102130.0,0.28463473]
[1736206227522,0.59151276,102140.0,102130.0,0.28463473]
[1736206228131,0.23371276,102140.0,102130.0,0.64543473]
[1736206228722,0.23371276,102140.0,102130.0,0.64643473]
[1736206229231,0.29809542,102140.0,102130.0,0.64643473]
[1736206230218,0.29809542,102140.0,102130.0,0.88019082]
[1736206231633,0.23771276,102140.0,102130.0,0.88019082]
[1736206232336,0.12053,102140.0,102130.0,0.88019082]
[1736206233424,0.12053,102140.0,102130.0,1.2674171]
[1736206233624,0.12053,102140.0,102130.0,1.27710569]
[1736206234825,0.12053,102140.0,102130.0,1.00675746]
[1736206235718,0.12053,102140.0,102130.0,0.57588621]
[1736206235919,0.18091266,102140.0,102130.0,0.63626887]
[1736206236228,0.18091266,102140.0,102130.0,0.57588621]
[1736206237429,0.12053,102140.0,102130.0,0.57588621]
[1736206237637,0.23771276,102140.0,102130.0,0.4590683]
[1736206238035,0.23771276,102140.0,102130.0,0.51945096]
[1736206240139,0.23771276,102140.0,102130.0,0.34407375]
[1736206247540,0.38419121,102140.0,102130.0,0.34407375]
[1736206250137,0.38419121,102140.0,102130.0,0.63626887]
[1736206251243,0.26700845,102140.0,102130.0,0.57588621]
[1736206251443,0.68819111,102140.0,102130.0,0.52695121]
[1736206252746,0.68819111,102140.0,102130.0,0.23475609]
[1736206254144,0.32739111,102140.0,102130.0,0.23475609]
[1736206254350,0.68819111,102140.0,102130.0,0.23475609]
[1736206257237,0.74857377,102140.0,102130.0,0.23475609]
[1736206257445,1.10937377,102140.0,102130.0,0.23475609]
[1736206257644,1.04899111,102140.0,102130.0,0.23475609]
[1736206258353,1.10937377,102140.0,102130.0,0.23475609]
[1736206259751,1.13866946,102140.0,102130.0,0.41039249]
[1736206260346,1.0782868,102140.0,102130.0,0.41039249]
[1736206260955,1.13866946,102140.0,102130.0,0.41039249]
[1736206261153,1.0782868,102140.0,102130.0,0.41039249]
[1736206261346,1.13866946,102140.0,102130.0,0.1766364]
[1736206261546,1.0782868,102140.0,102130.0,0.1766364]
[1736206263643,1.22496299,102140.0,102130.0,0.1766364]
[1736206264858,1.0782868,102140.0,102130.0,0.1766364]
[1736206267560,1.28533956,102140.0,102130.0,0.1766364]
[1736206268258,0.048935,102130.0,102120.0,0.52595121]
[1736206268459,0.50281766,102130.0,102120.0,0.52595121]
[1736206268858,0.50281766,102130.0,102120.0,0.23375609]
[1736206269460,0.50581766,102130.0,102120.0,0.23475609]
[1736206270255,0.65546101,102130.0,102120.0,0.001]
[1736206274270,0.66534036,102130.0,102120.0,0.001]
[1736206276371,0.6049577,102130.0,102120.0,0.001]
[1736206276669,0.66534036,102130.0,102120.0,0.001]
[1736206279759,0.6049577,102130.0,102120.0,0.001]
[1736206280159,0.66534036,102130.0,102120.0,0.23475609]
[1736206289076,0.72572302,102130.0,102120.0,0.23475609]
[1736206289265,0.048939,102120.0,102110.0,0.29219512]
[1736206289472,0.59410432,102120.0,102110.0,0.29219512]
[1736206290566,0.59510432,102120.0,102110.0,0.29219512]
[1736206291272,0.048944,102110.0,102100.0,0.35064008]
[1736206291464,0.56350932,102110.0,102100.0,0.35064008]
[1736206294963,0.56350932,102110.0,102070.0,0.0322]
[1736206294964,0.048959,102080.0,102070.0,0.0322]
[1736206295178,0.048963,102070.0,102050.0,0.3605751]
[1736206295367,0.53053332,102060.0,102050.0,0.38224008]
[1736206295573,0.53053332,102060.0,102050.0,0.35064008]
[1736206295764,0.89133332,102060.0,102050.0,0.35064008]
[1736206296672,0.048973,102050.0,102040.0,0.06059498]
[1736206296871,0.47015566,102050.0,102040.0,0.06059498]
[1736206297080,0.50195689,102050.0,102040.0,0.06059498]
[1736206297576,0.409773,102050.0,102040.0,0.06059498]
[1736206298283,0.409773,102050.0,102040.0,0.06959498]
[1736206298477,0.048973,102050.0,102040.0,0.06959498]
[1736206299383,0.048973,102050.0,102040.0,0.07559498]
[1736206299681,0.409773,102050.0,102040.0,0.07559498]
[1736206299882,0.50195689,102050.0,102040.0,0.07559498]
[1736206300278,0.409773,102050.0,102040.0,0.07559498]
[1736206300978,0.50195689,102050.0,102040.0,0.07559498]
[1736206301375,0.50195689,102050.0,102040.0,0.01509498]
[1736206301574,0.56645689,102050.0,102040.0,0.01509498]
[1736206304989,0.57145689,102050.0,102040.0,9.498e-05]
[1736206306482,0.57145689,102050.0,102020.0,0.425]
[1736206306677,0.14116689,102030.0,102020.0,0.0642]
[1736206306986,0.048983,102030.0,102020.0,0.0642]
[1736206308571,0.048983,102030.0,102020.0,0.115187]
[1736206308878,0.048983,102030.0,102020.0,0.478987]
[1736206309077,0.048983,102030.0,102020.0,0.118187]
[1736206309578,0.048983,102030.0,102020.0,0.57117089]
[1736206309988,0.048983,102030.0,102020.0,0.56917089]
[1736206310787,0.048983,102030.0,102020.0,0.57610002]
[1736206310977,0.048983,102030.0,102020.0,0.57910002]
[1736206311488,0.048983,102030.0,102020.0,0.07412913]
[1736206311675,0.048983,102030.0,102020.0,0.00992913]
[1736206311876,0.048987,102020.0,102010.0,0.3608]
[1736206312076,0.048992,102010.0,102000.0,0.572093]
[1736206312282,0.048992,102010.0,102000.0,0.603693]
[1736206312484,0.048992,102010.0,102000.0,0.69587689]
[1736206313275,0.048992,102010.0,102000.0,0.603693]
[1736206313476,0.048992,102010.0,102000.0,0.69587689]
[1736206313872,0.048992,102010.0,102000.0,0.70588328]
[1736206314380,0.048992,102010.0,102000.0,0.61369939]
[1736206314978,0.048992,102010.0,102000.0,0.79806717]
[1736206315186,0.048992,102010.0,102000.0,0.80206717]
[1736206315386,0.048992,102010.0,102000.0,0.80906717]
[1736206315588,0.048992,102010.0,102000.0,0.71688328]
[1736206315888,0.048987,102020.0,102000.0,0.71688328]
[1736206315889,0.048991,102020.0,102010.0,0.048988]
[1736206316084,0.048991,102020.0,102010.0,0.50197189]
[1736206316285,0.048991,102020.0,102010.0,0.14117189]
[1736206316481,0.048991,102020.0,102010.0,0.50197189]
[1736206316685,0.048991,102020.0,102010.0,0.14117189]
[1736206317088,0.048991,102020.0,102010.0,0.50197189]
[1736206318088,0.048991,102020.0,102010.0,0.50397189]
[1736206318289,0.048991,102020.0,102010.0,0.414788]
[1736206318491,0.14117489,102020.0,102010.0,0.3658]
[1736206318884,0.048991,102020.0,102010.0,0.414792]
[1736206319084,0.048991,102020.0,102010.0,0.50697589]
[1736206324293,0.13679537,102020.0,102010.0,0.414792]
[1736206324686,0.13679537,102020.0,102010.0,0.50697589]
[1736206325889,0.25386786,102020.0,102010.0,0.50697589]
[1736206326584,0.20864062,102030.0,102010.0,0.50697589]
[1736206326794,0.20864062,102030.0,102020.0,0.409787]
[1736206326995,0.25762462,102030.0,102020.0,0.409787]
[1736206328186,0.25762462,102030.0,102020.0,0.50197089]
[1736206328791,0.111284,102030.0,102020.0,0.409787]
[1736206330194,0.25762462,102030.0,102020.0,0.409787]
[1736206330495,0.048987,102020.0,102010.0,0.34116835]
[1736206330696,0.53357089,102020.0,102010.0,0.34116835]
[1736206331496,0.53357089,102020.0,102010.0,0.05099]
[1736206331999,0.53357089,102020.0,102010.0,0.05399]
[1736206332395,0.53357089,102020.0,102010.0,0.005]
[1736206332593,0.048992,102010.0,102000.0,0.39217835]
[1736206332898,0.53307589,102010.0,102000.0,0.39217835]
[1736206334195,0.70884211,102010.0,102000.0,0.104]
[1736206334791,0.70984211,102010.0,102000.0,0.111]
[1736206335401,0.85644515,102010.0,102000.0,0.111]
[1736206336599,0.67967893,102010.0,102000.0,0.107]
[1736206336999,0.67967893,102010.0,102000.0,0.105]
[1736206338602,0.70987893,102010.0,102000.0,0.105]
[1736206341007,0.71087893,102010.0,102000.0,0.1]
[1736206341201,0.26189504,102010.0,102000.0,0.148997]
[1736206341506,0.15160304,102010.0,102000.0,0.69416478]
[1736206341804,0.15160304,102010.0,102000.0,0.72596478]
[1736206342007,0.005,102010.0,102000.0,0.72596478]
[1736206343403,0.005,102010.0,102000.0,1.28076707]
[1736206349207,0.005,102010.0,102000.0,1.06459929]
[1736206349515,0.005,102010.0,102000.0,1.16675298]
[1736206349814,0.005,102010.0,102000.0,1.23145298]
[1736206350202,0.005,102010.0,102000.0,1.26395298]
[1736206351204,0.005,102010.0,102000.0,1.35613687]
[1736206351905,0.081486,102030.0,102020.0,0.048987]
[1736206352102,0.081486,102030.0,102020.0,0.50197089]
[1736206352298,0.048986,102030.0,102020.0,0.50197089]
[1736206352505,0.048986,102030.0,102020.0,0.53467089]
[1736206353107,0.053986,102030.0,102020.0,0.76874902]
[1736206353617,0.061986,102030.0,102020.0,0.76974902]
[1736206354416,0.061986,102030.0,102020.0,0.28406513]
[1736206354610,0.093386,102030.0,102020.0,0.28406513]
[1736206355715,0.093386,102030.0,102020.0,0.14217089]
[1736206356915,0.093386,102030.0,102020.0,0.50297089]
[1736206357313,0.061986,102030.0,102020.0,0.53487089]
[1736206357817,0.013,102030.0,102020.0,0.53487089]
[1736206358020,0.013,102030.0,102020.0,0.56777089]
[1736206359107,0.013,102030.0,102020.0,0.80184902]
[1736206361917,0.30908874,102050.0,102020.0,0.80184902]
[1736206362108,0.35806474,102050.0,102030.0,0.45298389]
[1736206362308,0.048981,102040.0,102030.0,0.50196189]
[1736206363718,0.048981,102040.0,102030.0,0.409778]
[1736206364613,0.051981,102040.0,102030.0,0.410778]
[1736206369216,0.051981,102040.0,102030.0,0.049978]
[1736206369922,0.051981,102040.0,102030.0,0.28405613]
[1736206373315,0.19858404,102040.0,102030.0,0.28405613]
[1736206373519,0.19858404,102040.0,102030.0,0.64485613]
[1736206375829,0.19858404,102040.0,102030.0,0.73704002]
[1736206376221,0.19858404,102040.0,102030.0,0.64485613]
[1736206376421,0.19858404,102040.0,102030.0,0.93703448]
[1736206378026,0.19858404,102040.0,102030.0,1.19890777]
[1736206378230,0.19858404,102040.0,102030.0,1.29109166]
[1736206378431,0.19858404,102040.0,102030.0,1.38327555]
[1736206379223,0.051981,102040.0,102030.0,1.40765361]
[1736206380924,0.051981,102040.0,102030.0,1.11547526]
[1736206381920,0.003,102040.0,102030.0,1.11547526]
[1736206382128,0.003,102040.0,102030.0,1.20765915]
[1736206382330,0.051978,102040.0,102030.0,1.11547526]
[1736206384825,0.051978,102040.0,102030.0,1.40872958]
[1736206386435,0.051978,102040.0,102030.0,1.42572457]
[1736206387935,0.051978,102040.0,102030.0,1.11547526]
[1736206389336,0.051978,102040.0,102030.0,1.40867981]
[1736206391136,0.051978,102040.0,102030.0,1.3769788]
[1736206391731,0.003,102040.0,102030.0,1.43746168]
[1736206392131,0.11736345,102050.0,102040.0,0.048978]
[1736206392438,0.11736345,102050.0,102040.0,0.62634376]
[1736206392836,0.048969,102060.0,102040.0,0.62634376]
[1736206393144,0.048969,102060.0,102050.0,0.47025088]
[1736206394136,0.051969,102060.0,102050.0,0.47025088]
[1736206395139,0.051969,102060.0,102050.0,0.5019091]
[1736206395443,0.051969,102060.0,102050.0,0.5029091]
[1736206395742,0.051969,102060.0,102050.0,1.29186177]
[1736206396041,0.048969,102060.0,102050.0,1.29186177]
[1736206396942,0.048969,102060.0,102050.0,1.30178347]
[1736206398745,0.048969,102060.0,102050.0,0.7470883]
[1736206404353,0.048969,102060.0,102050.0,1.3083278]
[1736206409461,0.048969,102060.0,102050.0,1.0740703]
[1736206410356,0.048969,102060.0,102050.0,0.9720075]
[1736206411358,0.048969,102060.0,102050.0,1.0641486]
[1736206412270,0.048969,102060.0,102050.0,1.29866942]
[1736206414267,0.048969,102060.0,102050.0,1.29766942]
[1736206414561,0.048969,102060.0,102050.0,1.29866942]
[1736206414764,0.048969,102060.0,102050.0,1.30833247]
[1736206415267,0.048969,102060.0,102050.0,1.27666218]
[1736206416266,0.048969,102060.0,102050.0,1.26699913]
[1736206416465,0.048969,102060.0,102050.0,0.90619913]
[1736206419765,0.048969,102060.0,102050.0,1.26699913]
[1736206422359,0.048969,102060.0,102050.0,1.03247831]
[1736206423161,0.048969,102060.0,102050.0,0.67167831]
[1736206423369,0.05893218,102060.0,102050.0,1.03247831]
[1736206423761,0.5495249,102070.0,102050.0,1.03247831]
[1736206423961,0.04897,102060.0,102050.0,1.03247831]
[1736206424967,0.1958061,102060.0,102050.0,1.03247831]
[1736206426271,0.04897,102060.0,102050.0,1.38311839]
[1736206430674,0.37156832,102070.0,102060.0,0.048968]